bitfinex-derivatives/quotes_BNBF0:USTF0_20251225
["timestamp","ask_amount","ask_price","bid_price","bid_amount"]
[1766681869462,0.68091154,841.29,840.36,1.7729465]
[1766681869762,0.68091154,841.28,840.36,1.7729465]
[1766681870063,0.68091154,841.27,840.36,1.7729465]
[1766681870261,0.68091154,841.26,840.36,1.7729465]
[1766681870458,0.68091154,841.25,840.36,1.7729465]
[1766681870662,0.68091154,841.24,840.36,1.7729465]
[1766681870857,0.68091154,841.23,840.36,1.7729465]
[1766681871062,0.68091154,841.22,840.36,1.7729465]
[1766681871257,0.68091154,841.21,840.36,1.7729465]
[1766681871461,0.68091154,841.2,840.36,1.7729465]
[1766681871758,0.68091154,841.19,840.36,1.7729465]
[1766681871956,0.68091154,841.18,840.36,1.7729465]
[1766681872160,0.68091154,841.17,840.36,1.7729465]
[1766681872356,0.68091154,841.16,840.36,1.7729465]
[1766681872558,0.68091154,841.15,840.36,1.7729465]
[1766681872764,0.68091154,841.14,840.36,1.7729465]
[1766681872959,0.68091154,841.13,840.36,1.7729465]
[1766681873159,0.68091154,841.12,840.36,1.7729465]
[1766681873360,0.68091154,841.11,840.36,1.7729465]
[1766681873659,0.89120927,841.37,840.36,1.7729465]
[1766681873861,0.68093944,841.36,840.36,1.7729465]
[1766681874057,0.68093944,841.35,840.36,1.7729465]
[1766681874361,0.68093944,841.34,840.36,1.7729465]
[1766681874561,0.68093944,841.33,840.36,1.7729465]
[1766681874857,0.68093944,841.32,840.36,1.7729465]
[1766681875061,0.68093944,841.31,840.36,1.7729465]
[1766681875257,0.68093944,841.3,840.36,1.7729465]
[1766681875461,0.68093944,841.29,840.36,1.7729465]
[1766681875662,0.68093944,841.28,840.36,1.7729465]
[1766681875862,0.68093944,841.27,840.36,1.7729465]
[1766681876161,0.68093944,841.26,840.36,1.7729465]
[1766681876361,0.68093944,841.25,840.36,1.7729465]
[1766681876563,0.68093944,841.24,840.36,1.7729465]
[1766681876763,0.68093944,841.23,840.36,1.7729465]
[1766681876963,0.68093944,841.22,840.36,1.7729465]
[1766681877164,0.89120927,841.37,840.36,1.7729465]
[1766681877165,0.68093944,841.21,840.36,1.7729465]
[1766681877364,0.68093944,841.2,840.36,1.7729465]
[1766681877665,0.68093944,841.19,840.33,1.7729465]
[1766681877861,0.68093944,841.18,840.33,1.7729465]
[1766681878062,0.68093944,841.17,840.33,1.7729465]
[1766681878360,0.68093944,841.16,840.33,1.7729465]
[1766681878659,0.68093944,841.15,840.33,1.7729465]
[1766681878864,0.68093944,841.14,840.33,1.7729465]
[1766681879062,0.68093944,841.13,840.33,1.7729465]
[1766681879268,0.68093944,841.12,840.33,1.7729465]
[1766681879462,0.68093944,841.11,840.33,1.7729465]
[1766681879663,0.68093944,841.1,840.33,1.7729465]
[1766681879863,0.68093944,841.09,840.33,1.7729465]
[1766681880167,0.68093944,841.08,840.33,1.7729465]
[1766681880368,12.94250528,841.11,840.33,1.7729465]
[1766681880568,0.68080446,841.1,840.33,1.7729465]
[1766681880764,0.68080446,841.09,840.33,1.7729465]
[1766681881068,0.68080446,841.08,840.33,1.7729465]
[1766681881265,12.94250528,841.11,840.33,1.7729465]
[1766681881464,0.68076924,841.1,840.33,1.7729465]
[1766681881667,0.68076924,841.09,840.33,1.7729465]
[1766681881867,0.68076924,841.08,840.33,1.7729465]
[1766681882062,12.94250528,841.11,840.33,1.7729465]
[1766681882269,0.68075173,841.1,840.33,1.7729465]
[1766681882465,0.68075173,841.09,840.33,1.7729465]
[1766681882664,0.68075173,841.08,840.33,1.7729465]
[1766681882869,12.94250528,841.11,840.33,1.7729465]
[1766681883067,0.68076647,841.1,840.33,1.7729465]
[1766681883268,0.68076647,841.09,840.33,1.7729465]
[1766681883467,0.68076647,841.08,840.33,1.7729465]
[1766681883764,0.89120927,841.35,840.33,1.7729465]
[1766681883963,13.6382414,841.34,840.33,1.7729465]
[1766681884168,0.68046722,841.33,840.33,1.7729465]
[1766681884370,0.68046722,841.32,840.38,1.7729465]
[1766681884568,0.68046722,841.31,840.44,1.7729465]
[1766681884766,0.68046722,841.3,840.44,1.7729465]
[1766681885070,0.68046722,841.29,840.44,1.7729465]
[1766681885266,0.68046722,841.28,840.44,1.7729465]
[1766681885469,0.68046722,841.27,840.44,1.7729465]
[1766681885672,0.68046722,841.26,840.44,1.7729465]
[1766681885868,0.68046722,841.25,840.44,1.7729465]
[1766681886072,0.68046722,841.24,840.44,1.7729465]
[1766681886273,0.68046722,841.23,840.43,1.7729465]
[1766681886572,0.68046722,841.22,840.43,1.7729465]
[1766681886773,0.68046722,841.21,840.43,1.7729465]
[1766681886970,0.68046722,841.2,840.43,1.7729465]
[1766681887273,12.95777418,841.34,840.43,1.7729465]
[1766681887468,0.68023841,841.33,840.43,1.7729465]
[1766681887672,0.68023841,841.32,840.43,1.7729465]
[1766681887872,0.68023841,841.31,840.43,1.7729465]
[1766681888173,0.68023841,841.3,840.43,1.7729465]
[1766681888369,0.68023841,841.29,840.43,1.7729465]
[1766681888573,0.68023841,841.28,840.43,1.7729465]
[1766681888773,0.68023841,841.27,840.43,1.7729465]
[1766681888972,0.68023841,841.26,840.43,1.7729465]
[1766681889269,0.68023841,841.25,840.43,1.7729465]
[1766681889472,0.68023841,841.24,840.43,1.7729465]
[1766681889670,0.68023841,841.23,840.43,1.7729465]
[1766681889869,0.20691993,841.41,840.43,1.7729465]
[1766681890073,0.68010019,841.4,840.43,1.7729465]
[1766681890270,0.68010019,841.39,840.43,1.7729465]
[1766681890474,0.68010019,841.38,840.43,1.7729465]
[1766681890770,0.68010019,841.37,840.43,1.7729465]
[1766681890974,0.68010019,841.36,840.43,1.7729465]
[1766681891172,0.68010019,841.35,840.43,1.7729465]
[1766681891374,0.68010019,841.34,840.42,1.7729465]
[1766681891575,0.68010019,841.33,840.42,1.7729465]
[1766681891775,0.68010019,841.32,840.42,1.7729465]
[1766681892075,0.68010019,841.31,840.42,1.7729465]
[1766681892272,0.68010019,841.3,840.42,1.7729465]
[1766681892475,0.68010019,841.29,840.42,1.7729465]
[1766681892673,0.68010019,841.28,840.42,1.7729465]
[1766681892976,0.68010019,841.27,840.42,1.7729465]
[1766681893176,13.7563405,841.26,840.42,1.7729465]
[1766681893378,0.68010019,841.25,840.42,1.7729465]
[1766681893677,0.68010019,841.24,840.42,1.7729465]
[1766681893974,13.07624031,841.26,840.42,1.7729465]
[1766681894181,0.67988499,841.25,840.42,1.7729465]
[1766681894376,0.67988499,841.24,840.42,1.7729465]
[1766681894576,13.07624031,841.26,840.42,1.7729465]
[1766681894774,0.67984498,841.25,840.42,1.7729465]
[1766681895074,0.67984498,841.24,840.42,1.7729465]
[1766681895277,13.07624031,841.26,840.41,1.7729465]
[1766681895479,0.67980904,841.25,840.41,1.7729465]
[1766681895678,0.67980904,841.24,840.41,1.7729465]
[1766681895878,13.07624031,841.26,840.41,1.7729465]
[1766681896076,0.67980904,841.25,840.41,1.7729465]
[1766681896275,0.67980904,841.24,840.41,1.7729465]
[1766681896475,0.20691993,841.41,840.41,1.7729465]
[1766681896675,0.67977677,841.4,840.41,1.7729465]
[1766681896878,0.67977677,841.39,840.41,1.7729465]
[1766681897178,0.67977677,841.38,840.41,1.7729465]
[1766681897380,0.67977677,841.37,840.41,1.7729465]
[1766681897675,0.67977677,841.36,840.41,1.7729465]
[1766681897878,0.67977677,841.35,840.41,1.7729465]
[1766681898078,0.67977677,841.34,840.41,1.7729465]
[1766681898276,0.67977677,841.33,840.44,1.7729465]
[1766681898479,0.67977677,841.32,840.44,1.7729465]
[1766681898673,0.67977677,841.31,840.44,1.7729465]
[1766681898878,0.67977677,841.3,840.44,1.7729465]
[1766681899079,0.67977677,841.29,840.44,1.7729465]
[1766681899380,0.67977677,841.28,840.44,1.7729465]
[1766681899679,0.89120927,841.55,840.44,1.7729465]
[1766681899879,0.67863965,841.54,840.44,1.7729465]
[1766681900179,0.67863965,841.53,840.43,1.7729465]
[1766681900375,0.67863965,841.52,840.43,1.7729465]
[1766681900577,0.67863965,841.51,840.43,1.7729465]
[1766681900776,0.67863965,841.5,840.43,1.7729465]
[1766681900976,0.67863965,841.49,840.43,1.7729465]
[1766681901175,0.67863965,841.48,840.43,1.7729465]
[1766681901379,0.67863965,841.47,840.43,1.7729465]
[1766681901576,0.67863965,841.46,840.43,1.7729465]
[1766681901780,0.67863965,841.45,840.43,1.7729465]
[1766681901976,0.67863965,841.44,840.43,1.7729465]
[1766681902181,0.67863965,841.43,840.43,1.7729465]
[1766681902381,0.67863965,841.42,840.43,1.7729465]
[1766681902580,0.67863965,841.41,840.43,1.7729465]
[1766681902776,0.67863965,841.4,840.43,1.7729465]
[1766681903077,0.67863965,841.39,840.43,1.7729465]
[1766681903281,0.67863965,841.38,840.43,1.7729465]
[1766681903481,13.13637995,841.39,839.6,0.0121962]
[1766681903482,0.67863965,841.37,840.44,1.7729465]
[1766681903681,0.67863965,841.36,840.44,1.7729465]
[1766681903983,0.67863965,841.35,840.44,1.7729465]
[1766681904176,0.67863965,841.34,840.43,1.7729465]
[1766681904383,13.13637995,841.39,840.43,1.7729465]
[1766681904384,0.67863965,841.33,840.43,1.7729465]
[1766681904576,13.13637995,841.39,840.43,1.7729465]
[1766681904577,0.67863965,841.32,840.43,1.7729465]
[1766681904778,0.67863965,841.31,840.43,1.7729465]
[1766681904982,0.67863965,841.3,840.43,1.7729465]
[1766681905278,13.13637995,841.39,840.43,1.7729465]
[1766681905480,0.67824048,841.38,840.43,1.7729465]
[1766681905782,0.67824048,841.37,840.48,1.7729465]
[1766681905982,0.67824048,841.36,840.48,1.7729465]
[1766681906182,0.67824048,841.35,840.48,1.7729465]
[1766681906380,0.20686519,841.57,840.48,1.7729465]
[1766681906683,0.67819458,841.56,840.48,1.7729465]
[1766681906883,0.67819458,841.55,840.48,1.7729465]
[1766681907083,0.67819458,841.54,840.48,1.7729465]
[1766681907283,0.20686519,841.57,840.48,1.7729465]
[1766681907284,0.67819458,841.53,840.48,1.7729465]
[1766681907583,0.67819458,841.52,840.48,1.7729465]
[1766681907783,0.67819458,841.51,840.48,1.7729465]
[1766681908080,0.67819458,841.5,840.48,1.7729465]
[1766681908280,0.67819458,841.49,840.47,1.7729465]
[1766681908479,0.67819458,841.48,840.47,1.7729465]
[1766681908684,0.67819458,841.47,840.47,1.7729465]
[1766681908882,0.67819458,841.46,840.47,1.7729465]
[1766681909081,0.67819458,841.45,840.47,1.7729465]
[1766681909283,0.67819458,841.44,840.47,1.7729465]
[1766681909484,0.67819458,841.43,840.47,1.7729465]
[1766681909682,13.37835183,841.42,840.47,1.7729465]
[1766681909885,12.70015725,841.42,840.48,1.7729465]
[1766681910085,12.70015725,841.42,840.54,1.7729465]
[1766681911182,12.70015725,841.42,840.53,1.7729465]
[1766681913388,1.18823642,841.87,839.92,2.95491084]
[1766681913389,0.89120927,841.72,840.52,1.7729465]
[1766681913689,0.2068197,841.7,840.52,1.7729465]
[1766681913883,0.6774565,841.69,840.52,1.7729465]
[1766681914086,0.6774565,841.68,840.52,1.7729465]
[1766681914287,0.6774565,841.67,840.52,1.7729465]
[1766681914488,0.6774565,841.66,840.52,1.7729465]
[1766681914788,0.6774565,841.65,840.52,1.7729465]
[1766681914989,0.6774565,841.64,840.52,1.7729465]
[1766681915189,0.6774565,841.63,840.52,1.7729465]
[1766681915390,0.6774565,841.62,840.52,1.7729465]
[1766681915586,0.6774565,841.61,840.52,1.7729465]
[1766681915790,0.6774565,841.6,840.52,1.7729465]
[1766681915990,0.6774565,841.59,840.52,1.7729465]
[1766681916191,0.6774565,841.58,840.51,1.7729465]
[1766681916487,0.6774565,841.57,840.51,1.7729465]
[1766681916690,0.6774565,841.56,840.51,1.7729465]
[1766681916886,0.6774565,841.55,840.51,1.7729465]
[1766681917087,0.6774565,841.54,840.51,1.7729465]
[1766681917286,0.6774565,841.53,840.51,1.7729465]
[1766681917589,0.6774565,841.52,840.51,1.7729465]
[1766681917787,0.6774565,841.51,840.51,1.7729465]
[1766681918090,0.6774565,841.5,840.51,1.7729465]
[1766681918291,0.6774565,841.49,840.51,1.7729465]
[1766681918587,0.6774565,841.48,840.51,1.7729465]
[1766681918793,0.6774565,841.47,840.51,1.7729465]
[1766681918991,0.6774565,841.46,840.51,1.7729465]
[1766681919193,0.2068197,841.7,840.51,1.7729465]
[1766681919394,0.67722601,841.69,840.51,1.7729465]
[1766681919594,0.67722601,841.68,840.51,1.7729465]
[1766681919790,0.67722601,841.67,840.51,1.7729465]
[1766681919995,0.67722601,841.66,840.51,1.7729465]
[1766681920195,0.67722601,841.65,840.51,1.7729465]
[1766681920396,0.67722601,841.64,840.51,1.7729465]
[1766681920696,0.67722601,841.63,840.51,1.7729465]
[1766681920895,0.67722601,841.62,840.51,1.7729465]
[1766681921094,0.67722601,841.61,840.51,1.7729465]
[1766681921391,0.67722601,841.6,840.51,1.7729465]
[1766681921592,0.67722601,841.59,840.51,1.7729465]
[1766681921792,0.67722601,841.58,840.51,1.7729465]
[1766681921996,0.67722601,841.57,840.51,1.7729465]
[1766681922291,0.67722601,841.56,840.51,1.7729465]
[1766681922492,0.67722601,841.55,840.51,1.7729465]
[1766681922692,0.67722601,841.54,840.51,1.7729465]
[1766681922895,0.67722601,841.53,840.51,1.7729465]
[1766681923094,0.67722601,841.52,840.51,1.7729465]
[1766681923293,13.02311373,841.65,840.51,1.7729465]
[1766681923294,0.67722601,841.51,840.51,1.7729465]
[1766681923498,0.67722601,841.5,840.51,1.7729465]
[1766681923695,0.67722601,841.49,840.51,1.7729465]
[1766681923894,0.67722601,841.48,840.51,1.7729465]
[1766681924094,0.67722601,841.47,840.51,1.7729465]
[1766681924295,0.67722601,841.46,840.52,1.7729465]
[1766681924498,0.2068197,841.7,840.52,1.7729465]
[1766681924699,0.67733968,841.69,840.52,1.7729465]
[1766681924999,0.67733968,841.68,840.52,1.7729465]
[1766681925197,0.67733968,841.67,840.52,1.7729465]
[1766681925395,0.67733968,841.66,840.52,1.7729465]
[1766681925599,0.67733968,841.65,840.52,1.7729465]
[1766681925796,0.67733968,841.64,840.52,1.7729465]
[1766681926000,0.67733968,841.63,840.52,1.7729465]
[1766681926194,0.67733968,841.62,840.52,1.7729465]
[1766681926495,0.67733968,841.61,840.52,1.7729465]
[1766681926700,0.67733968,841.6,840.52,1.7729465]
[1766681926900,0.67733968,841.59,840.52,1.7729465]
[1766681927100,0.67733968,841.58,840.52,1.7729465]
[1766681927302,0.67733968,841.57,840.52,1.7729465]
[1766681927502,0.67733968,841.56,840.52,1.7729465]
[1766681927704,0.2068197,841.7,840.68,1.18592283]
[1766681928301,0.2068197,841.7,840.69,1.18592283]
[1766681930807,0.89120927,841.68,840.66,1.18592283]
[1766681932007,0.89120927,841.67,840.65,1.18592283]
[1766681932209,0.89120927,841.66,840.66,1.18592283]
[1766681934808,0.89120927,841.65,840.65,1.18592283]
[1766681935015,0.89120927,841.64,840.64,1.18592283]
[1766681936214,0.89120927,841.63,840.64,1.18592283]
[1766681936717,0.89120927,841.6,840.61,1.18592283]
[1766681938418,0.89120927,841.6,840.62,1.18592283]
[1766681941217,0.89120927,841.59,840.62,1.18592283]
[1766681941718,0.89120927,841.56,840.59,1.18592283]
[1766681941921,0.89120927,841.51,840.53,1.18592283]
[1766681945323,0.89120927,841.51,840.52,1.18592283]
[1766681946425,0.89120927,841.52,840.52,1.18592283]
[1766681949330,0.89120927,841.52,840.51,1.18592283]
[1766681950429,55.77108412,841.63,840.51,1.18592283]
[1766681950430,0.89120927,841.53,840.51,1.18592283]
[1766681953031,0.89120927,841.53,840.35,1.7729465]
[1766681953032,0.89120927,841.45,840.42,1.18592283]
[1766681953330,0.89120927,841.43,840.38,1.18592283]
[1766681954229,0.89120927,841.43,840.37,1.18592283]
[1766681954428,0.89120927,841.44,840.37,1.18592283]
[1766681955331,0.89120927,841.44,840.36,1.18592283]
[1766681956330,0.89120927,841.45,840.35,1.18592283]
[1766681957834,0.67519097,841.44,840.2,1.7729465]
[1766681958036,0.67519097,841.43,840.2,1.7729465]
[1766681958331,0.67519097,841.42,840.19,1.7729465]
[1766681958530,0.67519097,841.41,840.19,1.7729465]
[1766681958732,0.67519097,841.4,840.19,1.7729465]
[1766681958934,0.67519097,841.39,840.19,1.7729465]
[1766681959233,0.67519097,841.38,840.19,1.7729465]
[1766681959434,0.67519097,841.37,840.19,1.7729465]
[1766681959631,0.67519097,841.36,840.19,1.7729465]
[1766681959834,0.67519097,841.35,840.19,1.7729465]
[1766681960033,12.76878662,841.44,840.19,1.7729465]
[1766681960034,0.67519097,841.34,840.19,1.7729465]
[1766681960231,0.67519097,841.33,840.19,1.7729465]
[1766681960431,0.67519097,841.32,840.18,1.7729465]
[1766681960736,0.67519097,841.31,840.18,1.7729465]
[1766681961034,0.67519097,841.3,840.18,1.7729465]
[1766681961334,0.67519097,841.29,840.18,1.7729465]
[1766681961532,0.67519097,841.28,840.18,1.7729465]
[1766681961735,0.67519097,841.27,840.18,1.7729465]
[1766681961935,0.67519097,841.26,840.18,1.7729465]
[1766681962139,0.67519097,841.25,840.18,1.7729465]
[1766681962431,0.67519097,841.24,840.16,1.7729465]
[1766681962630,0.67519097,841.23,840.16,1.7729465]
[1766681962832,0.67519097,841.22,840.16,1.7729465]
[1766681963032,0.67519097,841.21,840.16,1.7729465]
[1766681963231,0.67519097,841.2,840.16,1.7729465]
[1766681963434,0.67519097,841.19,840.16,1.7729465]
[1766681963637,0.89120927,841.46,840.16,1.7729465]
[1766681963834,0.67447937,841.45,840.16,1.7729465]
[1766681964035,0.67447937,841.44,840.16,1.7729465]
[1766681964335,0.67447937,841.43,840.16,1.7729465]
[1766681964535,0.67447937,841.42,840.16,1.7729465]
[1766681964735,0.67447937,841.41,840.16,1.7729465]
[1766681964935,0.67447937,841.4,840.16,1.7729465]
[1766681965135,0.67447937,841.39,840.16,1.7729465]
[1766681965435,0.67447937,841.38,840.16,1.7729465]
[1766681965732,0.67447937,841.37,840.16,1.7729465]
[1766681965933,0.67447937,841.36,840.16,1.7729465]
[1766681966133,0.67447937,841.35,840.16,1.7729465]
[1766681966332,0.67447937,841.34,840.16,1.7729465]
[1766681966538,0.67447937,841.33,840.16,1.7729465]
[1766681966736,0.67447937,841.32,840.16,1.7729465]
[1766681966934,0.67447937,841.31,840.16,1.7729465]
[1766681967137,0.67447937,841.3,840.16,1.7729465]
[1766681967434,0.67447937,841.29,840.16,1.7729465]
[1766681967633,0.67447937,841.28,840.16,1.7729465]
[1766681967838,0.67447937,841.27,840.16,1.7729465]
[1766681968032,0.67447937,841.26,840.16,1.7729465]
[1766681968238,0.67447937,841.25,840.16,1.7729465]
[1766681968435,0.67447937,841.24,840.16,1.7729465]
[1766681968733,0.67447937,841.23,840.16,1.7729465]
[1766681968937,0.67447937,841.22,840.16,1.7729465]
[1766681969239,0.67447937,841.21,840.16,1.7729465]
[1766681969435,0.67447937,841.2,840.16,1.7729465]
[1766681969634,0.67447937,841.19,840.16,1.7729465]
[1766681969932,0.89120927,841.46,840.16,1.7729465]
[1766681970137,13.36998059,841.45,840.16,1.7729465]
[1766681970338,0.67446905,841.44,840.16,1.7729465]
[1766681970637,0.67446905,841.43,840.16,1.7729465]
[1766681970833,0.67446905,841.42,840.16,1.7729465]
[1766681971039,0.67446905,841.41,840.16,1.7729465]
[1766681971234,12.69551154,841.45,840.16,1.7729465]
[1766681971235,0.67446905,841.4,840.16,1.7729465]
[1766681971435,0.67446905,841.39,840.16,1.7729465]
[1766681971634,0.67446905,841.38,840.16,1.7729465]
[1766681971835,0.67446905,841.37,840.16,1.7729465]
[1766681972034,0.67446905,841.36,840.16,1.7729465]
[1766681972238,0.67446905,841.35,840.17,1.7729465]
[1766681972436,0.67446905,841.34,840.17,1.7729465]
[1766681972739,0.67446905,841.33,840.17,1.7729465]
[1766681972938,0.67446905,841.32,840.17,1.7729465]
[1766681973140,0.67446905,841.31,840.17,1.7729465]
[1766681973338,0.67446905,841.3,840.17,1.7729465]
[1766681973538,0.67446905,841.29,840.13,1.7729465]
[1766681973738,0.67446905,841.28,840.13,1.7729465]
[1766681973934,0.67446905,841.27,840.13,1.7729465]
[1766681974137,0.67446905,841.26,840.13,1.7729465]
[1766681974433,0.67446905,841.25,840.14,1.7729465]
[1766681974635,0.67446905,841.24,840.14,1.7729465]
[1766681974834,0.67446905,841.23,840.14,1.7729465]
[1766681975132,0.67446905,841.22,840.14,1.7729465]
[1766681975335,0.67446905,841.21,840.14,1.7729465]
[1766681975538,0.67446905,841.2,840.14,1.7729465]
[1766681975739,0.67446905,841.19,840.14,1.7729465]
[1766681976241,0.67446905,841.19,840.15,1.7729465]
[1766681979141,0.67446905,841.19,840.16,1.7729465]
[1766681979836,0.67446905,841.18,840.16,1.7729465]
[1766681980040,0.67446905,841.17,840.16,1.7729465]
[1766681980242,0.67446905,841.16,840.16,1.7729465]
[1766681980539,0.67446905,841.15,840.16,1.7729465]
[1766681980838,0.67446905,841.14,840.16,1.7729465]
[1766681981042,0.67446905,841.13,840.16,1.7729465]
[1766681981340,0.67446905,841.12,840.17,1.7729465]
[1766681981539,0.67446905,841.11,840.17,1.7729465]
[1766681981736,0.89120927,841.38,840.17,1.7729465]
[1766681982041,13.67901171,841.37,840.17,1.7729465]
[1766681982338,0.67530496,841.36,840.17,1.7729465]
[1766681982541,0.67530496,841.35,840.17,1.7729465]
[1766681982740,0.67530496,841.34,840.17,1.7729465]
[1766681982945,0.67530496,841.33,840.17,1.7729465]
[1766681983138,0.67530496,841.32,840.17,1.7729465]
[1766681983338,0.67530496,841.31,840.18,1.7729465]
[1766681983642,0.67530496,841.3,840.18,1.7729465]
[1766681983842,0.67530496,841.29,840.18,1.7729465]
[1766681984044,0.67530496,841.28,840.18,1.7729465]
[1766681984240,0.67530496,841.27,840.18,1.7729465]
[1766681984544,0.67530496,841.26,840.18,1.7729465]
[1766681984744,0.67530496,841.25,840.18,1.7729465]
[1766681984945,0.67530496,841.24,840.18,1.7729465]
[1766681985245,0.67530496,841.23,840.18,1.7729465]
[1766681985541,0.67530496,841.22,840.18,1.7729465]
[1766681985746,0.67530496,841.21,840.18,1.7729465]
[1766681985944,0.67530496,841.2,840.18,1.7729465]
[1766681986144,0.67530496,841.19,840.18,1.7729465]
[1766681986440,0.67530496,841.18,840.19,1.7729465]
[1766681986645,0.67530496,841.17,840.19,1.7729465]
[1766681986842,0.67530496,841.16,840.19,1.7729465]
[1766681987045,0.67530496,841.15,840.19,1.7729465]
[1766681987247,0.67530496,841.14,840.19,1.7729465]
[1766681987444,0.67530496,841.13,840.19,1.7729465]
[1766681987747,0.67530496,841.13,839.92,54.99241242]
[1766681987748,0.67530496,841.12,840.17,1.7729465]
[1766681988044,0.89120927,841.33,840.17,1.7729465]
[1766681988045,0.67530496,841.11,840.17,1.7729465]
[1766681988244,0.67530496,841.32,840.17,1.7729465]
[1766681988448,12.91076401,841.11,840.18,1.7729465]
[1766681988649,0.67530496,841.1,840.18,1.7729465]
[1766681991245,0.67530496,841.1,840.19,1.7729465]
[1766681991645,0.67530496,841.09,840.19,1.7729465]
[1766681991948,0.67530496,841.08,840.19,1.7729465]
[1766681992149,0.67530496,841.07,840.19,1.7729465]
[1766681992345,0.67530496,841.06,840.19,1.7729465]
[1766681992545,0.67530496,841.05,840.19,1.7729465]
[1766681992847,0.89120927,841.32,840.19,1.7729465]
[1766681993046,0.67894653,841.31,840.19,1.7729465]
[1766681993251,0.67894653,841.3,840.19,1.7729465]
[1766681993445,0.67894653,841.29,840.19,1.7729465]
[1766681993649,0.67894653,841.28,840.19,1.7729465]
[1766681993849,0.67894653,841.27,840.19,1.7729465]
[1766681994048,0.67894653,841.26,840.19,1.7729465]
[1766681994244,0.67894653,841.25,840.19,1.7729465]
[1766681994450,0.67894653,841.24,840.2,1.7729465]
[1766681994750,0.67894653,841.23,840.2,1.7729465]
[1766681994949,0.67894653,841.22,840.2,1.7729465]
[1766681995250,0.67894653,841.21,840.21,1.7729465]
[1766681995549,0.67894653,841.2,840.21,1.7729465]
[1766681995751,0.67894653,841.19,840.21,1.7729465]
[1766681995946,0.67894653,841.18,840.21,1.7729465]
[1766681996148,0.67894653,841.17,840.21,1.7729465]
[1766681996351,0.67894653,841.16,840.21,1.7729465]
[1766681996552,0.67894653,841.15,840.21,1.7729465]
[1766681996751,0.67894653,841.14,840.21,1.7729465]
[1766681997051,0.67894653,841.13,840.21,1.7729465]
[1766681997247,0.67894653,841.12,840.21,1.7729465]
[1766681997451,0.67894653,841.11,840.22,1.7729465]
[1766681997647,0.67894653,841.1,840.22,1.7729465]
[1766681997950,0.67894653,841.09,840.22,1.7729465]
[1766681998148,0.67894653,841.08,840.22,1.7729465]
[1766681998351,0.67894653,841.07,840.22,1.7729465]
[1766681998647,0.67894653,841.06,840.22,1.7729465]
[1766681998846,0.67894653,841.05,840.22,1.7729465]
[1766681999047,0.67894653,841.04,840.22,1.7729465]
[1766681999253,0.67894653,841.03,840.23,1.7729465]
[1766681999447,0.67894653,841.02,840.18,1.7729465]
[1766681999747,0.89120927,841.24,840.18,1.7729465]
[1766681999748,0.67894653,841.01,840.18,1.7729465]
[1766681999952,0.67894653,841.0,840.18,1.7729465]
[1766682000247,0.67894653,840.99,840.18,1.7729465]
[1766682000447,0.67894653,840.98,840.18,1.7729465]
[1766682000653,0.67894653,840.97,840.18,1.7729465]
[1766682000951,0.89120927,841.24,840.18,1.7729465]
[1766682001153,0.67963204,841.23,840.18,1.7729465]
[1766682001352,0.67963204,841.22,840.18,1.7729465]
[1766682001552,0.67963204,841.21,840.18,1.7729465]
[1766682001849,0.67963204,841.2,840.18,1.7729465]
[1766682002049,0.67963204,841.19,840.18,1.7729465]
[1766682002250,0.67963204,841.18,840.18,1.7729465]
[1766682002450,0.67963204,841.17,840.18,1.7729465]
[1766682002650,0.67963204,841.16,840.18,1.7729465]
[1766682002854,0.67963204,841.15,840.18,1.7729465]
[1766682003053,0.67963204,841.14,840.18,1.7729465]
[1766682003355,0.67963204,841.13,840.18,1.7729465]
[1766682003649,0.67963204,841.12,840.18,1.7729465]
[1766682003852,0.67963204,841.11,840.18,1.7729465]
[1766682004053,0.67963204,841.1,840.18,1.7729465]
[1766682004254,0.67963204,841.09,840.18,1.7729465]
[1766682004552,0.67963204,841.08,840.18,1.7729465]
[1766682004750,0.67963204,841.07,840.18,1.7729465]
[1766682004948,0.67963204,841.06,840.18,1.7729465]
[1766682005147,0.67963204,841.05,840.18,1.7729465]
[1766682005350,0.67963204,841.04,840.18,1.7729465]
[1766682005553,0.67963204,841.03,840.18,1.7729465]
[1766682005755,0.67963204,841.02,840.18,1.7729465]
[1766682005951,0.67963204,841.01,840.18,1.7729465]
[1766682006153,0.67963204,841.0,840.18,1.7729465]
[1766682006355,0.67963204,840.99,840.18,1.7729465]
[1766682006656,0.67963204,840.98,840.18,1.7729465]
[1766682006856,0.89120927,841.25,840.18,1.7729465]
[1766682007056,0.67951534,841.24,840.18,1.7729465]
[1766682007255,0.67951534,841.23,840.18,1.7729465]
[1766682007453,0.67951534,841.22,840.18,1.7729465]
[1766682007657,0.67951534,841.21,840.18,1.7729465]
[1766682007852,0.67951534,841.2,840.18,1.7729465]
[1766682008054,0.67951534,841.19,840.18,1.7729465]
[1766682008252,0.67951534,841.18,840.18,1.7729465]
[1766682008554,0.67951534,841.17,840.18,1.7729465]
[1766682008753,0.67951534,841.16,840.18,1.7729465]
[1766682008955,0.67951534,841.15,840.18,1.7729465]
[1766682009157,0.67951534,841.14,840.18,1.7729465]
[1766682009355,0.67951534,841.13,840.17,1.7729465]
[1766682009552,0.67951534,841.12,840.17,1.7729465]
[1766682009758,0.67951534,841.11,840.17,1.7729465]
[1766682009959,0.67951534,841.1,840.17,1.7729465]
[1766682010154,0.67951534,841.09,840.17,1.7729465]
[1766682010353,0.67951534,841.08,840.17,1.7729465]